fUSD/lending_fUSD_20250630
["ID","MTS","AMOUNT","RATE_DAILY","PERIOD"]
[368666244,1751284238989,-1802.27,0.00014269,2]
[368666246,1751284238998,-151.0,0.00014269,2]
[368666248,1751284239007,-151.0,0.00014269,2]
[368666250,1751284239017,-151.0,0.00014269,2]
[368666252,1751284239026,-490.0,0.00014269,2]
[368666254,1751284239036,-490.0,0.00014269,2]
[368666256,1751284239045,-554.79,0.00014269,2]
[368666258,1751284239056,-101.23146673,0.00014269,2]
[368666311,1751284241034,-388.76853327,0.00014269,2]
[368666312,1751284241043,-412.72345247,0.00014269,2]
[368666313,1751284241055,-77.27654753,0.00014269,2]
[368666314,1751284241064,-462.52345247,0.00014269,2]
[368666315,1751284241075,-27.47654753,0.00014269,2]
[368666316,1751284241085,-303.81136612,0.00014269,2]
[368666317,1751284241097,-452.54900002,0.00014269,2]
[368666318,1751284241110,-750.57963386,0.00014269,2]
[368666319,1751284241119,-222.58875194,0.00014269,2]
[368666322,1751284242913,-595.656,0.0001417,2]
[368666323,1751284243019,-552.10264082,0.0001417,2]
[368666324,1751284243030,-73.96718305,0.0001417,2]
[368666325,1751284243039,-377.066157,0.00014268,2]
[368666326,1751284243049,-267.41124806,0.00014269,2]
[368666327,1751284243058,-2639.62,0.00014269,2]
[368666328,1751284243067,-490.0,0.00014269,2]
[368666329,1751284243076,-490.0,0.00014269,2]
[368666330,1751284243085,-490.0,0.00014269,2]
[368666331,1751284243095,-585.5,0.00014269,2]
[368666332,1751284243103,-490.0,0.00014269,2]
[368666333,1751284243112,-490.0,0.00014269,2]
[368666334,1751284243121,-817.21,0.00014269,2]
[368666335,1751284243130,-490.0,0.00014269,2]
[368666336,1751284243139,-151.620111,0.00014269,2]
[368666337,1751284243148,-500.0,0.00014269,2]
[368666338,1751284243157,-500.0,0.00014269,2]
[368666339,1751284243167,-500.0,0.00014269,2]
[368666340,1751284243176,-552.53,0.00014269,2]
[368666342,1751284243186,-490.0,0.00014269,2]
[368666344,1751284243195,-500.0,0.00014269,2]
[368666346,1751284243204,-500.0,0.00014269,2]
[368666347,1751284243213,-500.0,0.00014269,2]
[368666348,1751284243223,-490.0,0.00014269,2]
[368666349,1751284243234,-2282.86,0.00014269,2]
[368666350,1751284243245,-490.0,0.00014269,2]
[368666351,1751284243255,-1022.35,0.00014269,2]
[368666352,1751284243264,-495.7,0.00014269,2]
[368666353,1751284243274,-490.0,0.00014269,2]
[368666354,1751284243284,-1893.7,0.00014269,2]
[368666355,1751284243294,-490.0,0.00014269,2]
[368666356,1751284243304,-943.0,0.00014269,2]
[368666357,1751284243318,-160.49442248,0.00014269,2]
[368666358,1751284243329,-154.488525,0.00014269,2]
[368666359,1751284243339,-1915.95,0.00014269,2]
[368666360,1751284243349,-490.0,0.00014269,2]
[368666361,1751284243358,-490.0,0.00014269,2]
[368666362,1751284243368,-490.0,0.00014269,2]
[368666363,1751284243377,-1738.69,0.00014269,2]
[368666364,1751284243387,-490.0,0.00014269,2]
[368666365,1751284243396,-10470.31,0.00014269,2]
[368666366,1751284243406,-1343.82,0.00014269,2]
[368666367,1751284243416,-490.0,0.00014269,2]
[368666369,1751284243426,-690.0,0.00014269,2]
[368666370,1751284243436,-490.0,0.00014269,2]
[368666371,1751284243447,-490.0,0.00014269,2]
[368666372,1751284243457,-784.24,0.00014269,2]
[368666373,1751284243468,-490.0,0.00014269,2]
[368666374,1751284243477,-1658.32,0.00014269,2]
[368666375,1751284243487,-591.03,0.00014269,2]
[368666376,1751284243496,-1598.47,0.00014269,2]
[368666377,1751284243506,-490.0,0.00014269,2]
[368666378,1751284243515,-1083.96,0.00014269,2]
[368666379,1751284243525,-490.0,0.00014269,2]
[368666380,1751284243534,-588.64,0.00014269,2]
[368666381,1751284243543,-490.0,0.00014269,2]
[368666382,1751284243552,-490.0,0.00014269,2]
[368666383,1751284243561,-259.83075512,0.00014269,2]
[368666384,1751284243570,-490.0,0.00014269,2]
[368666385,1751284243579,-6061.92,0.00014269,2]
[368666386,1751284243589,-643.64,0.00014269,2]
[368666387,1751284243598,-676.75,0.00014269,2]
[368666388,1751284243607,-151.0,0.00014269,2]
[368666389,1751284243616,-490.0,0.00014269,2]
[368666390,1751284243625,-2706.52,0.00014269,2]
[368666391,1751284243635,-490.0,0.00014269,2]
[368666392,1751284243645,-490.0,0.00014269,2]
[368666393,1751284243654,-490.0,0.00014269,2]
[368666394,1751284243664,-490.0,0.00014269,2]
[368666395,1751284243673,-3053.87,0.00014269,2]
[368666396,1751284243683,-490.0,0.00014269,2]
[368666397,1751284243692,-817.14,0.00014269,2]
[368666398,1751284243701,-490.0,0.00014269,2]
[368666399,1751284243710,-490.0,0.00014269,2]
[368666400,1751284243719,-490.0,0.00014269,2]
[368666401,1751284243728,-490.0,0.00014269,2]
[368666402,1751284243737,-1906.09,0.00014269,2]
[368666403,1751284243746,-3177.84,0.00014269,2]
[368666404,1751284243755,-489.820662,0.00014269,2]
[368666405,1751284243765,-489.820662,0.00014269,2]
[368666406,1751284243774,-489.820662,0.00014269,2]
[368666407,1751284243783,-489.820662,0.00014269,2]
[368666408,1751284243792,-489.820662,0.00014269,2]
[368666409,1751284243801,-489.820662,0.00014269,2]
[368666410,1751284243810,-489.820662,0.00014269,2]
[368666411,1751284243820,-489.820662,0.00014269,2]
[368666412,1751284243829,-489.820662,0.00014269,2]
[368666413,1751284243838,-490.0,0.00014269,2]
[368666414,1751284243847,-489.820662,0.00014269,2]
[368666415,1751284243856,-489.820662,0.00014269,2]
[368666416,1751284243866,-489.820662,0.00014269,2]
[368666417,1751284243875,-489.820662,0.00014269,2]
[368666418,1751284243886,-489.820662,0.00014269,2]
[368666419,1751284243895,-489.820662,0.00014269,2]
[368666420,1751284243904,-489.820662,0.00014269,2]
[368666421,1751284243913,-1570.32,0.00014269,2]
[368666422,1751284243923,-684.33,0.00014269,2]
[368666423,1751284243933,-490.0,0.00014269,2]
[368666424,1751284243942,-625.14417149,0.00014269,2]
[368666425,1751284243951,-500.0,0.00014269,2]
[368666426,1751284243960,-500.0,0.00014269,2]
[368666427,1751284243970,-500.0,0.00014269,2]
[368666428,1751284243979,-402.77997311,0.00014269,2]
[368666429,1751284243988,-500.0,0.00014269,2]
[368666430,1751284243997,-500.0,0.00014269,2]
[368666431,1751284244006,-500.0,0.00014269,2]
[368666432,1751284244015,-500.0,0.00014269,2]
[368666433,1751284244026,-500.0,0.00014269,2]
[368666434,1751284244035,-237.53773708,0.00014269,2]
[368666435,1751284244045,-500.0,0.00014269,2]
[368666436,1751284244057,-500.0,0.00014269,2]
[368666437,1751284244066,-500.0,0.00014269,2]
[368666438,1751284244076,-904.68,0.00014269,2]
[368666439,1751284244085,-490.0,0.00014269,2]
[368666440,1751284244095,-3631.2,0.00014269,2]
[368666441,1751284244105,-551.82,0.00014269,2]
[368666442,1751284244115,-1103.0,0.0001427,2]
[368666443,1751284244125,-490.0,0.0001427,2]
[368666444,1751284244135,-499.93,0.0001427,2]
[368666445,1751284244146,-490.0,0.0001427,2]
[368666446,1751284244155,-586.53,0.0001427,2]
[368666447,1751284244165,-490.0,0.0001427,2]
[368666448,1751284244174,-490.0,0.0001427,2]
[368666449,1751284244183,-490.0,0.0001427,2]
[368666450,1751284244193,-779.05,0.0001427,2]
[368666451,1751284244202,-490.0,0.0001427,2]
[368666452,1751284244211,-490.0,0.0001427,2]
[368666453,1751284244221,-490.0,0.0001427,2]
[368666454,1751284244230,-790.2,0.0001427,2]
[368666455,1751284244241,-490.0,0.0001427,2]
[368666456,1751284244251,-490.0,0.0001427,2]
[368666457,1751284244261,-490.0,0.0001427,2]
[368666458,1751284244270,-490.0,0.0001427,2]
[368666459,1751284244279,-151.0,0.0001427,2]
[368666460,1751284244288,-490.0,0.0001427,2]
[368666461,1751284244298,-490.0,0.0001427,2]
[368666462,1751284244307,-50.99436222,0.0001427,2]
[368666470,1751284271094,959.84,0.00013271,2]
[368666471,1751284288453,1148.458,0.00013985,2]
[368666472,1751284297320,1101.932921,0.0001403,2]
[368666474,1751284317944,251.0,0.00013699,2]
[368666475,1751284353906,469.049174,0.000141,2]
[368666476,1751284397019,-5000.0,0.00014169,2]
[368666477,1751284397042,-159.49075923,0.0001417,2]
[368666478,1751284397064,-168.34746248,0.0001417,2]
[368666479,1751284397085,-159.49075916,0.00014204,2]
[368666480,1751284397107,-159.49075916,0.00014239,2]
[368666481,1751284397129,-300.0,0.0001426,2]
[368666482,1751284397150,-57820.6866666,0.00014261,2]
[368666483,1751284397172,-79664.4966666,0.00014261,2]
[368666484,1751284397194,-1221.72582378,0.00014261,2]
[368666485,1751284397216,-207.4,0.00014261,2]
[368666486,1751284397238,-490.0,0.00014268,2]
[368666487,1751284397260,-377.066157,0.00014268,2]
[368666488,1751284397283,-2060.98,0.00014268,2]
[368666489,1751284397309,-839.62,0.00014268,2]
[368666490,1751284397330,-490.0,0.00014268,2]
[368666491,1751284397354,-1587.11,0.00014268,2]
[368666492,1751284397376,-490.0,0.00014268,2]
[368666493,1751284397398,-490.0,0.00014268,2]
[368666494,1751284397418,-490.0,0.00014268,2]
[368666495,1751284397439,-1708.14,0.00014268,2]
[368666496,1751284397462,-490.0,0.00014268,2]
[368666497,1751284397483,-510.77,0.00014268,2]
[368666498,1751284397505,-490.0,0.00014268,2]
[368666499,1751284397526,-490.0,0.00014268,2]
[368666500,1751284397549,-151.0,0.00014268,2]
[368666501,1751284397572,-1790.77,0.00014268,2]
[368666502,1751284397594,-622.77,0.00014268,2]
[368666503,1751284397616,-587.12,0.00014268,2]
[368666504,1751284397638,-1128.8,0.00014268,2]
[368666505,1751284397660,-1727.18,0.00014268,2]
[368666506,1751284397683,-548.01,0.00014268,2]
[368666507,1751284397706,-1347.76,0.00014268,2]
[368666508,1751284397729,-1555.25,0.00014268,2]
[368666509,1751284397752,-715.29,0.00014268,2]
[368666510,1751284397774,-490.0,0.00014268,2]
[368666511,1751284397796,-968.57,0.00014268,2]
[368666512,1751284397817,-1011.94,0.00014268,2]
[368666513,1751284397841,-2097.82,0.00014268,2]
[368666514,1751284397863,-2316.76,0.00014268,2]
[368666515,1751284397890,-686.06,0.00014268,2]
[368666516,1751284397912,-490.0,0.00014268,2]
[368666517,1751284397936,-490.0,0.00014268,2]
[368666518,1751284397959,-966.3,0.00014268,2]
[368666519,1751284397980,-529.51,0.00014268,2]
[368666520,1751284398002,-1363.57,0.00014268,2]
[368666521,1751284398024,-490.0,0.00014268,2]
[368666522,1751284398047,-490.0,0.00014268,2]
[368666523,1751284398070,-1562.69,0.00014268,2]
[368666524,1751284398093,-490.0,0.00014268,2]
[368666525,1751284398117,-1426.32,0.00014268,2]
[368666526,1751284398140,-189.69494599,0.00014268,2]
[368666527,1751284448760,7371.296479,0.00014097,2]
[368666528,1751284455073,-410.418027,0.00014168,2]
[368666529,1751284455097,-300.0,0.00014214,2]
[368666530,1751284455119,-250.0,0.00014214,2]
[368666531,1751284455142,-300.0,0.00014245,2]
[368666532,1751284455165,-250.0,0.00014245,2]
[368666533,1751284455187,-150.0,0.0001426,2]
[368666534,1751284455215,-212.98845237,0.0001426,2]
[368666535,1751284455241,-60519.2669999,0.00014261,2]
[368666536,1751284455265,-300.30505401,0.00014268,2]
[368666537,1751284455288,-759.98,0.00014268,2]
[368666538,1751284455312,-881.81,0.00014268,2]
[368666539,1751284455336,-1024.24,0.00014268,2]
[368666540,1751284455360,-1281.5,0.00014268,2]
[368666541,1751284455383,-1836.12,0.00014268,2]
[368666542,1751284455408,-1073.86,0.00014268,2]
[368666543,1751284455430,-1386.96,0.00014268,2]
[368666544,1751284455452,-490.0,0.00014268,2]
[368666545,1751284455474,-2994.96,0.00014268,2]
[368666546,1751284455496,-557.97,0.00014268,2]
[368666547,1751284455519,-490.0,0.00014268,2]
[368666548,1751284455542,-842.84,0.00014268,2]
[368666549,1751284455564,-1666.24,0.00014268,2]
[368666550,1751284455588,-1345.27,0.00014268,2]
[368666551,1751284455611,-756.44,0.00014268,2]
[368666552,1751284455633,-490.0,0.00014268,2]
[368666553,1751284455656,-1287.83,0.00014268,2]
[368666554,1751284455679,-1038.06,0.00014268,2]
[368666555,1751284455716,-862.94146672,0.00014268,2]
[368666556,1751284456892,821.09,0.00013318,2]
[368666558,1751284564862,1000.0,0.00013319,2]
[368666559,1751284581633,2000.0,0.00027397,120]
[368666560,1751284593212,469.0,0.00013314,2]
[368666561,1751284593237,66.37,0.00013314,2]
[368666562,1751284623781,610.0,0.00013699,2]
[368666563,1751284624907,23900.0,0.00013339,2]
[368666569,1751284650903,2843.45,0.00013339,2]
[368666570,1751284655754,1313.5,0.00013284,2]
[368666571,1751284663424,189.53,0.00013832,2]
[368666572,1751284701345,165.1,0.00013339,2]
[368666573,1751284709054,538.52,0.00013339,2]
[368666574,1751284788008,2997.93,0.00013339,2]
[368666575,1751284816947,173.82512826,0.00014065,2]
[368666576,1751284831160,150.0,0.00013339,2]
[368666577,1751284913726,1443.06,0.00013273,2]
[368666578,1751284932507,150.0,0.00013339,2]
[368666579,1751284945406,840.61,0.00013339,2]
[368666580,1751284945982,840.61,0.00013343,2]
[368666581,1751284946267,840.61,0.00013346,2]
[368666582,1751284946390,840.61,0.0001335,2]
[368666584,1751284946566,840.61,0.00013353,2]
[368666585,1751284947476,840.61,0.00013357,2]
[368666586,1751284947673,840.61,0.0001336,2]
[368666587,1751284947868,840.61,0.00013364,2]
[368666588,1751284948062,840.61,0.00013367,2]
[368666589,1751284948301,840.61,0.00013371,2]
[368666590,1751284948435,840.61,0.00013374,2]
[368666591,1751284948636,840.61,0.00013378,2]
[368666592,1751284948819,840.61,0.00013381,2]
[368666593,1751284949054,840.61,0.00013385,2]
[368666594,1751284949223,840.61,0.00013388,2]
[368666595,1751284949634,840.61,0.00013392,2]
[368666596,1751284949859,840.61,0.00013395,2]
[368666597,1751284950043,994.34,0.00013273,2]
[368666598,1751284950270,840.61,0.00013399,2]
[368666599,1751284950498,840.61,0.00013402,2]
[368666600,1751284950690,840.61,0.00013406,2]
[368666601,1751284967311,18133.84,0.00013292,2]
[368666602,1751284970755,2558.96,0.00013339,2]
[368666607,1751285052341,167.36,0.00013277,2]
[368666608,1751285087755,2777.52,0.00013699,2]
[368666610,1751285106767,374.67959628,0.00012822,2]
[368666611,1751285106800,374.67959628,0.00012836,2]
[368666612,1751285106843,374.67959628,0.00012851,2]
[368666613,1751285106886,374.67959628,0.00012865,2]
[368666614,1751285106923,374.67959628,0.00012879,2]
[368666615,1751285106960,374.67959628,0.00012894,2]
[368666616,1751285107097,374.67959628,0.00012923,2]
[368666617,1751285107138,374.67959628,0.00012937,2]
[368666618,1751285107194,374.67959628,0.00012951,2]
[368666619,1751285107263,374.67959628,0.00012966,2]
[368666620,1751285107348,374.67959628,0.0001298,2]
[368666621,1751285107401,374.67959628,0.00012995,2]
[368666622,1751285107477,374.67959628,0.00013009,2]
[368666623,1751285107548,374.67959628,0.00013023,2]
[368666624,1751285107627,374.67959628,0.00013038,2]
[368666625,1751285107691,374.67959628,0.00013052,2]
[368666626,1751285107763,374.67959628,0.00013067,2]
[368666627,1751285107827,374.67959628,0.00013081,2]
[368666628,1751285107903,374.67959628,0.00013095,2]
[368666629,1751285108001,374.67959628,0.0001311,2]
[368666630,1751285108049,374.67959628,0.00013124,2]
[368666631,1751285108319,374.67959628,0.00013139,2]
[368666632,1751285108355,374.67959628,0.00013167,2]
[368666633,1751285108390,374.67959628,0.00013196,2]
[368666634,1751285108426,374.67959628,0.00013182,2]
[368666635,1751285108468,374.67959628,0.0001321,2]
[368666636,1751285108534,374.67959628,0.00013225,2]
[368666637,1751285108611,374.67959628,0.00013239,2]
[368666638,1751285108782,374.67959628,0.00013153,2]
[368666639,1751285108877,374.67959628,0.00013268,2]
[368666640,1751285108904,374.67959628,0.00013282,2]
[368666641,1751285108959,374.67959628,0.00013297,2]
[368666642,1751285109046,374.67959628,0.00013311,2]
[368666643,1751285109100,374.67959628,0.00013326,2]
[368666644,1751285109135,374.67959628,0.0001334,2]
[368666645,1751285109170,374.67959628,0.00013254,2]
[368666646,1751285109220,374.67959628,0.00013354,2]
[368666647,1751285109291,374.67959628,0.00013369,2]
[368666648,1751285109321,374.67959628,0.00013383,2]
[368666649,1751285109384,374.67959628,0.00013398,2]
[368666650,1751285109512,374.67959628,0.00013412,2]
[368666651,1751285109592,374.67959628,0.00013426,2]
[368666652,1751285109711,374.67959628,0.00013441,2]
[368666653,1751285109778,374.67959628,0.00013455,2]
[368666654,1751285109842,374.67959628,0.00013469,2]
[368666655,1751285109890,374.67959628,0.00013484,2]
[368666656,1751285110021,374.67959628,0.00013498,2]
[368666657,1751285110073,374.67959628,0.00013513,2]
[368666658,1751285110220,374.67959628,0.00013527,2]
[368666659,1751285110271,374.67959628,0.00013541,2]
[368666660,1751285110302,374.67959628,0.00013556,2]
[368666661,1751285110355,374.67959628,0.0001357,2]
[368666662,1751285110409,374.67959628,0.00013585,2]
[368666663,1751285110476,374.67959628,0.00013599,2]
[368666664,1751285110517,374.67959628,0.00013613,2]
[368666665,1751285110579,374.67959628,0.00013628,2]
[368666666,1751285110641,374.67959628,0.00013642,2]
[368666667,1751285110696,374.67959628,0.00013657,2]
[368666668,1751285110813,374.67959628,0.00012908,2]
[368666669,1751285110867,374.67959628,0.00013671,2]
[368666670,1751285110916,374.67959628,0.00013685,2]
[368666671,1751285111118,374.67959628,0.000137,2]
[368666672,1751285111155,374.67959628,0.00013714,2]
[368666673,1751285111208,374.67959628,0.00013757,2]
[368666674,1751285111260,374.67959628,0.00013743,2]
[368666675,1751285111296,374.67959628,0.00013786,2]
[368666676,1751285111344,374.67959628,0.00013772,2]
[368666677,1751285111388,374.67959628,0.000138,2]
[368666678,1751285111429,374.67959628,0.00013729,2]
[368666679,1751285111481,374.67959628,0.00013815,2]
[368666680,1751285111577,374.67959628,0.00013844,2]
[368666681,1751285111649,374.67959628,0.00013858,2]
[368666682,1751285111714,374.67959628,0.00013829,2]
[368666683,1751285111776,374.67959628,0.00013872,2]
[368666684,1751285111872,374.67959628,0.00013887,2]
[368666685,1751285111906,374.67959628,0.00013901,2]
[368666686,1751285112103,374.67959628,0.00013916,2]
[368666687,1751285112175,374.67959628,0.0001393,2]
[368666688,1751285112271,374.67959628,0.00013944,2]
[368666689,1751285112382,374.67959628,0.00013959,2]
[368666690,1751285112459,374.67959628,0.00013988,2]
[368666691,1751285112543,374.67959628,0.00014002,2]
[368666692,1751285112593,374.67959628,0.00014016,2]
[368666693,1751285112662,374.67959628,0.00014031,2]
[368666694,1751285112733,374.67959628,0.00014045,2]
[368666695,1751285112810,374.67959628,0.00014059,2]
[368666696,1751285112875,374.67959628,0.00014074,2]
[368666697,1751285112953,374.67959628,0.00014088,2]
[368666698,1751285112998,374.67959628,0.00013973,2]
[368666699,1751285113905,150.0,0.00012822,2]
[368666700,1751285113950,150.0,0.00013297,2]
[368666701,1751285114176,150.0,0.00013772,2]
[368666702,1751285114354,303.49716925,0.00012836,2]
[368666703,1751285114397,303.49716925,0.00012851,2]
[368666704,1751285114437,303.49716925,0.00012865,2]
[368666705,1751285114480,303.49716925,0.00012822,2]
[368666706,1751285114549,303.49716925,0.00012879,2]
[368666707,1751285114592,303.49716925,0.00012908,2]
[368666709,1751285114762,303.49716925,0.00012923,2]
[368666710,1751285114816,303.49716925,0.00012894,2]
[368666711,1751285114849,303.49716925,0.00012966,2]
[368666712,1751285114891,303.49716925,0.00012951,2]
[368666713,1751285114968,303.49716925,0.0001298,2]
[368666714,1751285115016,303.49716925,0.00012937,2]
[368666715,1751285115046,303.49716925,0.00012995,2]
[368666716,1751285115116,303.49716925,0.00013009,2]
[368666717,1751285115195,303.49716925,0.00013023,2]
[368666718,1751285115348,303.49716925,0.00013038,2]
[368666719,1751285115382,303.49716925,0.00013052,2]
[368666720,1751285115441,303.49716925,0.00013067,2]
[368666721,1751285115538,303.49716925,0.00013081,2]
[368666722,1751285115609,303.49716925,0.00013095,2]
[368666723,1751285115740,303.49716925,0.0001311,2]
[368666724,1751285115830,303.49716925,0.00013124,2]
[368666725,1751285115872,303.49716925,0.00013139,2]
[368666726,1751285115923,303.49716925,0.00013153,2]
[368666727,1751285115953,303.49716925,0.00013167,2]
[368666728,1751285116019,303.49716925,0.00013182,2]
[368666729,1751285116074,303.49716925,0.00013196,2]
[368666730,1751285116133,303.49716925,0.0001321,2]
[368666731,1751285116195,303.49716925,0.00013225,2]
[368666732,1751285117647,303.49716925,0.00013239,2]
[368666733,1751285117689,303.49716925,0.00013297,2]
[368666734,1751285117731,303.49716925,0.00013254,2]
[368666735,1751285117770,303.49716925,0.00013282,2]
[368666736,1751285117804,303.49716925,0.00013326,2]
[368666737,1751285117842,303.49716925,0.00013311,2]
[368666738,1751285117893,303.49716925,0.00013268,2]
[368666739,1751285117932,303.49716925,0.0001334,2]
[368666740,1751285117966,303.49716925,0.00013369,2]
[368666741,1751285118012,303.49716925,0.00013354,2]
[368666742,1751285118070,303.49716925,0.00013383,2]
[368666743,1751285118123,303.49716925,0.00013398,2]
[368666744,1751285118198,303.49716925,0.00013412,2]
[368666745,1751285118239,303.49716925,0.00013426,2]
[368666746,1751285118308,303.49716925,0.00013441,2]
[368666747,1751285118368,303.49716925,0.00013455,2]
[368666748,1751285118430,303.49716925,0.00013469,2]
[368666749,1751285118478,303.49716925,0.00013484,2]
[368666750,1751285118536,303.49716925,0.00013498,2]
[368666751,1751285118596,303.49716925,0.00013513,2]
[368666752,1751285118643,303.49716925,0.00013527,2]
[368666753,1751285118771,303.49716925,0.00013541,2]
[368666754,1751285118851,303.49716925,0.00013556,2]
[368666755,1751285118905,303.49716925,0.0001357,2]
[368666756,1751285118963,303.49716925,0.00013585,2]
[368666757,1751285119012,303.49716925,0.00013599,2]
[368666758,1751285119070,303.49716925,0.00013613,2]
[368666759,1751285119118,303.49716925,0.00013628,2]
[368666760,1751285119198,303.49716925,0.00013642,2]
[368666761,1751285119244,303.49716925,0.00013657,2]
[368666762,1751285119313,303.49716925,0.00013685,2]
[368666763,1751285119363,303.49716925,0.000137,2]
[368666764,1751285119398,303.49716925,0.00013671,2]
[368666765,1751285119438,303.49716925,0.00013714,2]
[368666766,1751285119494,303.49716925,0.00013729,2]
[368666767,1751285119543,303.49716925,0.00013743,2]
[368666768,1751285119598,303.49716925,0.00013757,2]
[368666769,1751285119719,303.49716925,0.00013772,2]
[368666770,1751285119769,303.49716925,0.00013786,2]
[368666771,1751285119860,303.49716925,0.000138,2]
[368666772,1751285120012,303.49716925,0.00013815,2]
[368666773,1751285120168,303.49716925,0.00013829,2]
[368666774,1751285120204,303.49716925,0.00013844,2]
[368666775,1751285120249,303.49716925,0.00013858,2]
[368666776,1751285120298,303.49716925,0.00013872,2]
[368666777,1751285120343,303.49716925,0.00013887,2]
[368666778,1751285120379,303.49716925,0.00013901,2]
[368666779,1751285120430,303.49716925,0.00013916,2]
[368666780,1751285120480,303.49716925,0.0001393,2]
[368666781,1751285120525,303.49716925,0.00013944,2]
[368666782,1751285120573,303.49716925,0.00013959,2]
[368666783,1751285120615,303.49716925,0.00013973,2]
[368666784,1751285120652,303.49716925,0.00013988,2]
[368666785,1751285120699,303.49716925,0.00014002,2]
[368666786,1751285120755,303.49716925,0.00014016,2]
[368666787,1751285120789,303.49716925,0.00014031,2]
[368666788,1751285120834,303.49716925,0.00014045,2]
[368666789,1751285120875,303.49716925,0.00014059,2]
[368666790,1751285120925,303.49716925,0.00014074,2]
[368666791,1751285120954,303.49716925,0.00014088,2]
[368666792,1751285121371,160.24243428,0.00012822,2]
[368666793,1751285121411,160.24243428,0.00012836,2]
[368666794,1751285121446,160.24243428,0.00012851,2]
[368666795,1751285121589,160.24243428,0.00012865,2]
[368666796,1751285121631,160.24243428,0.00012879,2]
[368666797,1751285121677,160.24243428,0.00012894,2]
[368666798,1751285121719,160.24243428,0.00012908,2]
[368666799,1751285121754,160.24243428,0.00012923,2]
[368666800,1751285121802,160.24243428,0.00012937,2]
[368666801,1751285121868,160.24243428,0.00012951,2]
[368666802,1751285121935,160.24243428,0.00012966,2]
[368666803,1751285122004,160.24243428,0.0001298,2]
[368666804,1751285122071,160.24243428,0.00012995,2]
[368666805,1751285122151,160.24243428,0.00013009,2]
[368666806,1751285122257,160.24243428,0.00013023,2]
[368666807,1751285122307,160.24243428,0.00013038,2]
[368666808,1751285122359,160.24243428,0.00013052,2]
[368666809,1751285122424,160.24243428,0.00013067,2]
[368666810,1751285122497,160.24243428,0.00013081,2]
[368666811,1751285122601,160.24243428,0.00013095,2]
[368666812,1751285122646,160.24243428,0.0001311,2]
[368666813,1751285122718,160.24243428,0.00013124,2]
[368666814,1751285122816,160.24243428,0.00013139,2]
[368666815,1751285122849,160.24243428,0.00013153,2]
[368666816,1751285122921,160.24243428,0.00013167,2]
[368666817,1751285122993,160.24243428,0.00013182,2]
[368666818,1751285123072,160.24243428,0.00013196,2]
[368666819,1751285123148,160.24243428,0.0001321,2]
[368666820,1751285123209,160.24243428,0.00013225,2]
[368666821,1751285123326,160.24243428,0.00013239,2]
[368666822,1751285123360,160.24243428,0.00013254,2]
[368666823,1751285123426,160.24243428,0.00013268,2]
[368666824,1751285123486,160.24243428,0.00013282,2]
[368666825,1751285123816,160.24243428,0.00013297,2]
[368666826,1751285123856,160.24243428,0.00013311,2]
[368666827,1751285123902,160.24243428,0.00013326,2]
[368666828,1751285123945,160.24243428,0.0001334,2]
[368666829,1751285123997,160.24243428,0.00013354,2]